fUSD/lending_fUSD_20240501
["ID","MTS","AMOUNT","RATE_DAILY","PERIOD"]
[325205289,1714585840050,-151.0,0.0001299,2]
[325205291,1714585840060,-238.124558,0.0001299,2]
[325205293,1714585840072,-151.0,0.0001299,2]
[325205295,1714585840083,-151.0,0.0001299,2]
[325205297,1714585840093,-198.365392,0.0001299,2]
[325205299,1714585840102,-198.365392,0.0001299,2]
[325205301,1714585840112,-239.63431,0.0001299,2]
[325205304,1714585840121,-151.0,0.0001299,2]
[325205305,1714585840130,-239.63431,0.0001299,2]
[325205307,1714585840139,-151.0,0.0001299,2]
[325205309,1714585840149,-151.0,0.0001299,2]
[325205312,1714585840159,-187.042012,0.0001299,2]
[325205314,1714585840168,-187.042012,0.0001299,2]
[325205316,1714585840178,-207.551542,0.0001299,2]
[325205318,1714585840188,-207.551542,0.0001299,2]
[325205320,1714585840197,-151.0,0.0001299,2]
[325205322,1714585840206,-151.0,0.0001299,2]
[325205324,1714585840215,-256.143499,0.0001299,2]
[325205326,1714585840224,-256.143499,0.0001299,2]
[325205328,1714585840233,-583.32222,0.0001299,2]
[325205330,1714585840243,-151.0,0.0001299,2]
[325205332,1714585840252,-583.32222,0.0001299,2]
[325205334,1714585840261,-208.124314,0.0001299,2]
[325205336,1714585840270,-151.0,0.0001299,2]
[325205338,1714585840279,-151.0,0.0001299,2]
[325205340,1714585840289,-151.0,0.0001299,2]
[325205342,1714585840297,-151.0,0.0001299,2]
[325205344,1714585840307,-151.0,0.0001299,2]
[325205346,1714585840316,-333.776636,0.0001299,2]
[325205348,1714585840330,-333.776636,0.0001299,2]
[325205349,1714585840339,-151.0,0.0001299,2]
[325205351,1714585840348,-151.0,0.0001299,2]
[325205353,1714585840357,-151.0,0.0001299,2]
[325205356,1714585840367,-151.0,0.0001299,2]
[325205358,1714585840376,-176.461998,0.0001299,2]
[325205360,1714585840386,-151.0,0.0001299,2]
[325205362,1714585840395,-230.146961,0.0001299,2]
[325205364,1714585840405,-151.0,0.0001299,2]
[325205366,1714585840414,-230.146961,0.0001299,2]
[325205368,1714585840424,-151.0,0.0001299,2]
[325205370,1714585840433,-361.757936,0.0001299,2]
[325205372,1714585840442,-190.0,0.0001299,2]
[325205374,1714585840451,-361.757936,0.0001299,2]
[325205376,1714585840460,-151.0,0.0001299,2]
[325205378,1714585840469,-151.0,0.0001299,2]
[325205380,1714585840478,-247.011719,0.0001299,2]
[325205382,1714585840487,-229.225791,0.0001299,2]
[325205384,1714585840496,-151.0,0.0001299,2]
[325205386,1714585840506,-247.011719,0.0001299,2]
[325205388,1714585840515,-229.225791,0.0001299,2]
[325205390,1714585840525,-776.0,0.00012991,2]
[325205392,1714585840534,-151.0,0.00012991,2]
[325205394,1714585840543,-151.0,0.00012991,2]
[325205396,1714585840553,-224.691708,0.00012991,2]
[325205397,1714585840562,-151.0,0.00012991,2]
[325205400,1714585840573,-151.0,0.00012991,2]
[325205402,1714585840582,-151.0,0.00012991,2]
[325205404,1714585840592,-151.0,0.00012991,2]
[325205405,1714585840601,-151.0,0.00012991,2]
[325205408,1714585840611,-151.0,0.00012991,2]
[325205409,1714585840621,-151.0,0.00012991,2]
[325205412,1714585840630,-199.473168,0.00012991,2]
[325205413,1714585840641,-151.0,0.00012991,2]
[325205415,1714585840654,-197.2495,0.00012991,2]
[325205417,1714585840663,-151.0,0.00012991,2]
[325205419,1714585840672,-151.0,0.00012991,2]
[325205421,1714585840681,-151.0,0.00012991,2]
[325205423,1714585840690,-151.0,0.00012991,2]
[325205425,1714585840701,-151.0,0.00012991,2]
[325205427,1714585840710,-151.0,0.00012991,2]
[325205430,1714585840720,-151.0,0.00012991,2]
[325205432,1714585840729,-151.0,0.00012991,2]
[325205433,1714585840738,-151.0,0.00012991,2]
[325205436,1714585840748,-151.0,0.00012991,2]
[325205437,1714585840757,-151.0,0.00012991,2]
[325205438,1714585840766,-151.0,0.00012991,2]
[325205439,1714585840775,-194.18,0.00012991,2]
[325205440,1714585840784,-194.18,0.00012991,2]
[325205441,1714585840792,-194.18,0.00012991,2]
[325205442,1714585840802,-194.18,0.00012991,2]
[325205443,1714585840811,-279.0629103,0.00012991,2]
[325205444,1714585840820,-293.2641571,0.00012991,2]
[325205445,1714585840830,-307.4654039,0.00012991,2]
[325205446,1714585840839,-321.6666507,0.00012991,2]
[325205447,1714585840848,-151.030196,0.00012991,2]
[325205448,1714585840857,-151.030196,0.00012991,2]
[325205449,1714585840866,-151.030196,0.00012991,2]
[325205450,1714585840875,-151.030196,0.00012991,2]
[325205451,1714585840884,-151.0,0.00012991,2]
[325205452,1714585840893,-151.0,0.00012991,2]
[325205453,1714585840902,-1387.8957373,0.00012991,2]
[325205454,1714585840911,-1558.7602175,0.00012991,2]
[325205455,1714585840920,-1729.6246977,0.00012991,2]
[325205456,1714585840929,-1900.4891779,0.00012991,2]
[325205457,1714585840938,-151.0,0.00012991,2]
[325205459,1714585840947,-151.0,0.00012991,2]
[325205461,1714585840957,-151.0,0.00012991,2]
[325205463,1714585840967,-151.0,0.00012991,2]
[325205464,1714585840976,-151.0,0.00012991,2]
[325205467,1714585840986,-151.0,0.00012991,2]
[325205469,1714585840997,-151.0,0.00012991,2]
[325205470,1714585841009,-151.0,0.00012991,2]
[325205472,1714585841019,-151.0,0.00012991,2]
[325205474,1714585841029,-198.365392,0.00012991,2]
[325205477,1714585841040,-198.365392,0.00012991,2]
[325205478,1714585841049,-198.365392,0.00012991,2]
[325205481,1714585841059,-198.365392,0.00012991,2]
[325205483,1714585841070,-198.365392,0.00012991,2]
[325205485,1714585841080,-198.365392,0.00012991,2]
[325205487,1714585841090,-1028.24239,0.00012991,2]
[325205489,1714585841099,-1154.8297818,0.00012991,2]
[325205490,1714585841109,-1281.4171736,0.00012991,2]
[325205492,1714585841118,-1408.0045655,0.00012991,2]
[325205495,1714585841127,-239.63431,0.00012991,2]
[325205496,1714585841136,-239.63431,0.00012991,2]
[325205498,1714585841146,-239.63431,0.00012991,2]
[325205500,1714585841155,-151.0,0.00012991,2]
[325205502,1714585841164,-191.416073,0.00012991,2]
[325205505,1714585841174,-239.63431,0.00012991,2]
[325205506,1714585841183,-239.63431,0.00012991,2]
[325205508,1714585841192,-239.63431,0.00012991,2]
[325205510,1714585841202,-153.032759,0.00012991,2]
[325205512,1714585841211,-41294.74557428,0.00012991,2]
[325205575,1714585841782,-795.2682055,0.00012991,2]
[325205578,1714585841795,-1007.38297438,0.00012991,2]
[325205581,1714585841820,-648.5229323,0.00012991,2]
[325205583,1714585841832,-2484.23056204,0.00012991,2]
[325205585,1714585841841,-51921.5652296,0.00012991,2]
[325205587,1714585841851,-57612.9802107,0.00012991,2]
[325205589,1714585841860,-63304.3951917,0.00012991,2]
[325205591,1714585841869,-151.0,0.00012991,2]
[325205593,1714585841878,-151.0,0.00012991,2]
[325205595,1714585841888,-151.0,0.00012991,2]
[325205598,1714585841898,-3862.103776,0.00012991,2]
[325205600,1714585841907,-3862.103776,0.00012991,2]
[325205602,1714585841916,-187.042012,0.00012991,2]
[325205604,1714585841925,-187.042012,0.00012991,2]
[325205605,1714585841935,-187.042012,0.00012991,2]
[325205608,1714585841944,-187.042012,0.00012991,2]
[325205610,1714585841953,-187.042012,0.00012991,2]
[325205612,1714585841963,-187.042012,0.00012991,2]
[325205614,1714585841971,-207.551542,0.00012991,2]
[325205615,1714585841980,-207.551542,0.00012991,2]
[325205617,1714585841989,-207.551542,0.00012991,2]
[325205619,1714585842003,-211.9706177,0.00012991,2]
[325205621,1714585842012,-238.0664176,0.00012991,2]
[325205623,1714585842022,-264.1622175,0.00012991,2]
[325205625,1714585842031,-290.2580174,0.00012991,2]
[325205627,1714585842040,-207.551542,0.00012991,2]
[325205629,1714585842050,-207.551542,0.00012991,2]
[325205631,1714585842059,-207.551542,0.00012991,2]
[325205633,1714585842070,-151.0,0.00012991,2]
[325205635,1714585842081,-151.0,0.00012991,2]
[325205637,1714585842092,-151.0,0.00012991,2]
[325205640,1714585842101,-151.0,0.00012991,2]
[325205642,1714585842111,-151.0,0.00012991,2]
[325205644,1714585842119,-259.886858,0.00012991,2]
[325205646,1714585842129,-256.143499,0.00012991,2]
[325205648,1714585842138,-256.143499,0.00012991,2]
[325205650,1714585842147,-256.143499,0.00012991,2]
[325205652,1714585842156,-256.143499,0.00012991,2]
[325205653,1714585842166,-583.32222,0.00012991,2]
[325205655,1714585842175,-583.32222,0.00012991,2]
[325205657,1714585842184,-583.32222,0.00012991,2]
[325205660,1714585842194,-151.0,0.00012991,2]
[325205662,1714585842204,-151.0,0.00012991,2]
[325205664,1714585842213,-151.0,0.00012991,2]
[325205666,1714585842223,-583.32222,0.00012991,2]
[325205668,1714585842232,-256.143499,0.00012991,2]
[325205670,1714585842241,-583.32222,0.00012991,2]
[325205672,1714585842250,-256.143499,0.00012991,2]
[325205673,1714585842259,-583.32222,0.00012991,2]
[325205675,1714585842268,-4540.044905,0.00012991,2]
[325205677,1714585842278,-4484.4263244,0.00012991,2]
[325205680,1714585842288,-4428.8077438,0.00012991,2]
[325205682,1714585842297,-4373.1891633,0.00012991,2]
[325205684,1714585842306,-13301.1030285,0.00012991,2]
[325205685,1714585842315,-13138.1556379,0.00012991,2]
[325205688,1714585842327,-12975.2082473,0.00012991,2]
[325205717,1714585842336,-12812.2608566,0.00012991,2]
[325205720,1714585842613,-151.0,0.00012991,2]
[325205722,1714585842622,-151.0,0.00012991,2]
[325205724,1714585842632,-151.0,0.00012991,2]
[325205726,1714585842641,-151.0,0.00012991,2]
[325205728,1714585842650,-151.0,0.00012991,2]
[325205730,1714585842660,-246.0508762,0.00012991,2]
[325205732,1714585842670,-241.6264997,0.00012991,2]
[325205734,1714585842679,-237.2021233,0.00012991,2]
[325205736,1714585842687,-232.7777468,0.00012991,2]
[325205738,1714585842696,-151.0,0.00012991,2]
[325205740,1714585842706,-151.0,0.00012991,2]
[325205742,1714585842715,-151.0,0.00012991,2]
[325205744,1714585842724,-151.0,0.00012991,2]
[325205745,1714585842733,-151.0,0.00012991,2]
[325205748,1714585842742,-151.0,0.00012991,2]
[325205750,1714585842752,-333.776636,0.00012991,2]
[325205752,1714585842761,-151.0,0.00012991,2]
[325205753,1714585842770,-333.776636,0.00012991,2]
[325205755,1714585842779,-151.0,0.00012991,2]
[325205758,1714585842788,-333.776636,0.00012991,2]
[325205760,1714585842798,-333.776636,0.00012991,2]
[325205762,1714585842807,-333.776636,0.00012991,2]
[325205764,1714585842816,-2465.6079045,0.00012991,2]
[325205765,1714585842827,-333.776636,0.00012991,2]
[325205767,1714585842836,-2421.2724493,0.00012991,2]
[325205770,1714585842846,-2376.936994,0.00012991,2]
[325205771,1714585842855,-2332.6015387,0.00012991,2]
[325205773,1714585842864,-151.0,0.00012991,2]
[325205776,1714585842874,-151.0,0.00012991,2]
[325205778,1714585842883,-151.0,0.00012991,2]
[325205780,1714585842892,-151.0,0.00012991,2]
[325205782,1714585842902,-151.0,0.00012991,2]
[325205784,1714585842911,-151.0,0.00012991,2]
[325205786,1714585842920,-151.0,0.00012991,2]
[325205787,1714585842930,-151.0,0.00012991,2]
[325205791,1714585842940,-151.0,0.00012991,2]
[325205794,1714585842949,-151.0,0.00012991,2]
[325205796,1714585842959,-151.0,0.00012991,2]
[325205797,1714585842968,-151.0,0.00012991,2]
[325205800,1714585842978,-151.0,0.00012991,2]
[325205802,1714585842988,-151.0,0.00012991,2]
[325205804,1714585842998,-151.0,0.00012991,2]
[325205805,1714585843012,-151.0,0.00012991,2]
[325205808,1714585843022,-151.0,0.00012991,2]
[325205811,1714585843033,-230.146961,0.00012991,2]
[325205814,1714585843044,-230.146961,0.00012991,2]
[325205817,1714585843053,-230.146961,0.00012991,2]
[325205820,1714585843064,-230.146961,0.00012991,2]
[325205823,1714585843074,-151.0,0.00012991,2]
[325205826,1714585843085,-151.0,0.00012991,2]
[325205829,1714585843094,-151.0,0.00012991,2]
[325205832,1714585843104,-178.758888,0.00012991,2]
[325205834,1714585843113,-230.146961,0.00012991,2]
[325205836,1714585843122,-230.146961,0.00012991,2]
[325205838,1714585843131,-230.146961,0.00012991,2]
[325205840,1714585843140,-230.146961,0.00012991,2]
[325205842,1714585843150,-151.0,0.00012991,2]
[325205845,1714585843159,-361.757936,0.00012991,2]
[325205846,1714585843168,-151.0,0.00012991,2]
[325205848,1714585843177,-361.757936,0.00012991,2]
[325205851,1714585843186,-361.757936,0.00012991,2]
[325205854,1714585843195,-361.757936,0.00012991,2]
[325205858,1714585843205,-151.0,0.00012991,2]
[325205860,1714585843214,-151.0,0.00012991,2]
[325205862,1714585843223,-361.757936,0.00012991,2]
[325205865,1714585843232,-361.757936,0.00012991,2]
[325205867,1714585843241,-151.0,0.00012991,2]
[325205870,1714585843250,-361.757936,0.00012991,2]
[325205873,1714585843260,-151.0,0.00012991,2]
[325205877,1714585843269,-361.757936,0.00012991,2]
[325205880,1714585843278,-151.0,0.00012991,2]
[325205883,1714585843287,-151.0,0.00012991,2]
[325205884,1714585843296,-151.0,0.00012991,2]
[325205887,1714585843305,-151.0,0.00012991,2]
[325205888,1714585843315,-247.011719,0.00012991,2]
[325205891,1714585843326,-247.011719,0.00012991,2]
[325205893,1714585843336,-247.011719,0.00012991,2]
[325205895,1714585843345,-247.011719,0.00012991,2]
[325205897,1714585843354,-229.225791,0.00012991,2]
[325205899,1714585843363,-151.0,0.00012991,2]
[325205901,1714585843373,-229.225791,0.00012991,2]
[325205903,1714585843382,-151.0,0.00012991,2]
[325205905,1714585843391,-247.011719,0.00012991,2]
[325205907,1714585843400,-229.225791,0.00012991,2]
[325205908,1714585843410,-151.0,0.00012991,2]
[325205910,1714585843419,-247.011719,0.00012991,2]
[325205913,1714585843429,-229.225791,0.00012991,2]
[325205915,1714585843438,-151.0,0.00012991,2]
[325205916,1714585843447,-247.011719,0.00012991,2]
[325205919,1714585843457,-247.011719,0.00012991,2]
[325205921,1714585843466,-229.225791,0.00012991,2]
[325205923,1714585843475,-229.225791,0.00012991,2]
[325205925,1714585843484,-229.225791,0.00012991,2]
[325205927,1714585843493,-229.225791,0.00012991,2]
[325205929,1714585843503,-200.42749069,0.00012998,2]
[325205930,1714585843512,-11884.43258231,0.00012998,2]
[325205932,1714585843522,-151.0,0.00012998,2]
[325205934,1714585843531,-151.0,0.00012998,2]
[325205936,1714585843541,-151.0,0.00012998,2]
[325205938,1714585843550,-151.0,0.00012998,2]
[325205940,1714585843560,-151.0,0.00012998,2]
[325205943,1714585843575,-151.0,0.00012998,2]
[325205945,1714585843584,-151.030196,0.00012998,2]
[325205947,1714585843593,-151.030196,0.00012998,2]
[325205949,1714585843602,-151.0,0.00012998,2]
[325205951,1714585843611,-151.0,0.00012998,2]
[325205953,1714585843620,-151.0,0.00012998,2]
[325205955,1714585843630,-333.776636,0.00012998,2]
[325205957,1714585843639,-333.776636,0.00012998,2]
[325205959,1714585843648,-207.33070675,0.00012999,2]
[325205961,1714585843659,-5850.48710487,0.00012999,2]
[325205963,1714585843669,-151.0,0.00012999,2]
[325205965,1714585843679,-151.0,0.00012999,2]
[325205967,1714585843692,-151.0,0.00012999,2]
[325205969,1714585843702,-194.18,0.00012999,2]
[325205971,1714585843712,-194.18,0.00012999,2]
[325205973,1714585843722,-2000.0,0.00012999,2]
[325205975,1714585843737,-3274349.51683441,0.00013,2]
[325205978,1714585843765,-499329.4497528,0.00013,2]
[325205987,1714585843852,-3930.55985511,0.00013,2]
[325205990,1714585843864,-465.7345,0.00013,2]
[325205992,1714585843875,-2199.22889,0.00013,2]
[325205997,1714585843901,-9315.10412334,0.00013,2]
[325206030,1714585844198,-1077.98103756,0.00013,2]
[325206032,1714585844210,-418.54394703,0.00013,2]
[325206034,1714585844221,-581.37955769,0.00013,2]
[325206036,1714585844232,-314.64991316,0.00013,2]
[325206052,1714585845914,-500.0,0.00012963,2]
[325206053,1714585846141,-1352.42,0.00012963,2]
[325206054,1714585846152,-7.26415944,0.00013,2]
[325206055,1714585846164,-3428.48834132,0.00013,2]
[325206056,1714585846176,-9504.99871472,0.00013,2]
[325206057,1714585846230,-413.8784653,0.00013,2]
[325206058,1714585846242,-1267.82998508,0.00013,2]
[325206059,1714585846254,-782.91,0.00013,2]
[325206107,1714585846931,-811.0,0.0001274,2]
[325206110,1714585846943,-164.1344,0.0001274,2]
[325206112,1714585846953,-151.0,0.000129,2]
[325206114,1714585846962,-802.52557474,0.00012962,2]
[325206116,1714585846974,-151.48780312,0.00012962,2]
[325206118,1714585846983,-781.50035442,0.00012962,2]
[325206120,1714585846993,-355.25867564,0.00012962,2]
[325206122,1714585847009,-182.85698734,0.00012962,2]
[325206124,1714585847018,-132.16179266,0.0001299,2]
[325206126,1714585847030,-232.94449756,0.0001299,2]
[325206128,1714585847039,-151.0,0.0001299,2]
[325206130,1714585847048,-151.0,0.00012991,2]
[325206132,1714585847057,-151.0,0.00012991,2]
[325206134,1714585847066,-2271.27044083,0.00013,2]
[325206136,1714585847082,-87731.0535405,0.00013,2]
[325206138,1714585847092,-43932.86839555,0.00013,2]
[325206140,1714585847103,-34944.51702897,0.00013,2]
[325206147,1714585847157,-11178.17180675,0.00013,2]
[325206149,1714585847166,-41592.42058304,0.00013,2]
[325206152,1714585847178,-16429.32181704,0.00013,2]
[325206154,1714585847189,-316.01403212,0.00013,2]
[325206160,1714585847236,-2473.3443048,0.00013,2]
[325206162,1714585847247,-874.73172436,0.00013,2]
[325206165,1714585847266,-2215.62495359,0.00012962,2]
[325206167,1714585847275,-11143.48572018,0.00013,2]
[325206169,1714585847286,-285.5184421,0.00013,2]
[325206171,1714585847298,-2037.18162,0.00013,2]
[325206176,1714585847334,-85990.00000005,0.00013,2]
[325206178,1714585847345,-1283.41218399,0.00013,2]
[325206259,1714585907822,749.48014976,0.00011606,2]
[325206260,1714585908885,156.19509503,0.00011605,2]
[325206261,1714585921157,157.10515557,0.00011605,2]
[325206263,1714586008154,229.94070033,0.00011547,30]
[325206266,1714586069339,253.19403427,0.00012,30]
[325206267,1714586118422,119701.24511131,0.00011547,2]
[325206268,1714586119390,-1996.39282651,0.00011755,2]
[325206269,1714586119412,-524.39078621,0.00011755,2]
[325206270,1714586119434,-200.46583698,0.00011756,2]
[325206271,1714586119456,-2959.7505503,0.00011756,2]
[325206272,1714586121608,288.56832451,0.00011547,2]
[325206274,1714586184164,288.66568232,0.00011547,2]
[325206275,1714586186529,173.18880076,0.00011547,2]
[325206276,1714586198215,167.47692704,0.00011547,2]
[325206277,1714586202528,217.65722174,0.00011547,2]
[325206278,1714586224837,150.0,0.00010993,2]
[325206279,1714586230962,559.9186672,0.00011547,2]
[325206280,1714586239028,150.0,0.00011614,2]
[325206281,1714586255609,559.9186672,0.00011547,2]
[325206282,1714586272922,665.69779474,0.00011547,2]
[325206283,1714586310304,939.6,0.00011511,2]
[325206284,1714586310540,939.6,0.00011514,2]
[325206285,1714586310858,939.6,0.00011517,2]
[325206286,1714586311021,939.6,0.0001152,2]
[325206287,1714586311203,939.6,0.00011524,2]
[325206288,1714586311400,939.6,0.00011527,2]
[325206289,1714586311635,939.6,0.0001153,2]
[325206290,1714586312048,939.6,0.00011533,2]
[325206291,1714586312261,939.6,0.00011536,2]
[325206292,1714586312503,939.6,0.00011539,2]
[325206293,1714586312770,939.6,0.00011542,2]
[325206294,1714586313007,939.6,0.00011545,2]
[325206295,1714586313556,939.6,0.00011548,2]
[325206296,1714586313831,939.6,0.00011551,2]
[325206297,1714586314317,939.6,0.00011554,2]
[325206298,1714586314380,939.6,0.00011557,2]
[325206299,1714586314544,939.6,0.0001156,2]
[325206300,1714586315002,939.6,0.00011563,2]
[325206301,1714586315443,939.6,0.00011566,2]
[325206302,1714586315678,939.6,0.00011569,2]
[325206303,1714586384330,200.0,0.000116,2]
[325206304,1714586416527,25418.82963425,0.000116,2]
[325206305,1714586431394,1206.97,0.00011553,2]
[325206306,1714586432193,288.61820171,0.000116,2]
[325206307,1714586432235,361.46733542,0.000116,2]
[325206308,1714586434774,366.00520161,0.000116,2]
[325206309,1714586436935,559.9186672,0.000116,2]
[325206310,1714586437761,600.0,0.00011581,2]
[325206311,1714586438580,173.1609721,0.000116,2]
[325206312,1714586439747,1472.72036714,0.000116,2]
[325206313,1714586440085,2357.70890881,0.000116,2]
[325206314,1714586440136,408.61554877,0.000116,2]
[325206315,1714586440336,155.0,0.000116,2]
[325206316,1714586440788,1375.03310501,0.000116,2]
[325206317,1714586441458,943.66867027,0.000116,2]
[325206318,1714586442717,399.48907395,0.000116,2]
[325206319,1714586443258,866.82015334,0.000116,2]
[325206320,1714586443311,155.08203841,0.000116,2]
[325206321,1714586443572,248.75,0.00011614,2]
[325206322,1714586444026,3502.9801481,0.000116,2]
[325206323,1714586446334,2397.56586293,0.000116,2]
[325206324,1714586452889,546.20949815,9.28e-05,2]
[325206325,1714586453798,1472.72036714,0.000116,2]
[325206326,1714586454324,155.0,0.000116,2]
[325206327,1714586454708,366.00520161,0.000116,2]
[325206328,1714586454938,559.9186672,0.000116,2]
[325206329,1714586456172,361.46733542,0.000116,2]
[325206330,1714586456536,288.61820171,0.000116,2]
[325206331,1714586457241,344.98288347,0.000116,2]
[325206332,1714586457543,257.50470225,0.000116,2]
[325206333,1714586458550,173.1609721,0.000116,2]
[325206334,1714586460708,1375.03310501,0.000116,2]
[325206335,1714586463252,866.82015334,0.000116,2]
[325206336,1714586463385,943.66867027,0.000116,2]
[325206337,1714586464715,399.48907395,0.000116,2]
[325206338,1714586469302,155.0,0.000116,2]
[325206339,1714586470714,366.00520161,0.000116,2]
[325206340,1714586471779,1472.72036714,0.000116,2]
[325206341,1714586472939,559.9186672,0.000116,2]
[325206342,1714586474390,361.46733542,0.000116,2]
[325206343,1714586474550,192.58914757,0.000116,2]
[325206344,1714586474610,344.98288347,0.000116,2]
[325206345,1714586474850,546.20949815,9.28e-05,2]
[325206346,1714586476552,173.1609721,0.000116,2]
[325206347,1714586477402,943.66867027,0.000116,2]
[325206348,1714586478628,288.61820171,0.000116,2]
[325206349,1714586479323,866.82015334,0.000116,2]
[325206350,1714586480703,1375.03310501,0.000116,2]
[325206351,1714586480759,399.48907395,0.000116,2]
[325206352,1714586488352,211.53005403,0.000116,2]
[325206353,1714586489275,252.58135666,0.000116,2]
[325206354,1714586490177,483.28487246,0.000116,2]
[325206355,1714586490931,559.9186672,0.000116,2]
[325206356,1714586491752,1472.72036714,0.000116,2]
[325206357,1714586492855,546.20949815,9.28e-05,2]
[325206358,1714586494202,288.61820171,0.000116,2]
[325206359,1714586496575,173.1609721,0.000116,2]
[325206360,1714586497395,943.66867027,0.000116,2]
[325206361,1714586498169,179.79467674,0.000116,2]
[325206362,1714586500708,1375.03310501,0.000116,2]
[325206363,1714586501324,866.82015334,0.000116,2]
[325206364,1714586504709,188.411556,0.000116,2]
[325206365,1714586505254,314.0047099,0.000116,2]
[325206366,1714586511424,559.9186672,0.000116,2]
[325206367,1714586511746,1472.72036714,0.000116,2]
[325206368,1714586514847,546.20949815,9.28e-05,2]
[325206369,1714586515396,943.66867027,0.000116,2]
[325206370,1714586516200,288.61820171,0.000116,2]
[325206371,1714586516711,1375.03310501,0.000116,2]
[325206372,1714586518476,179.79467674,0.000116,2]
[325206373,1714586523259,866.82015334,0.000116,2]
[325206374,1714586525363,150.0,0.00011657,2]
[325206375,1714586526959,559.9186672,0.000116,2]
[325206376,1714586529762,1472.72036714,0.000116,2]
[325206377,1714586530552,173.1609721,0.000116,2]
[325206378,1714586531580,943.66867027,0.000116,2]
[325206379,1714586532855,548.65614973,9.28e-05,2]
[325206380,1714586536217,288.61820171,0.000116,2]
[325206382,1714586538185,179.60145871,0.000116,2]
[325206383,1714586543281,866.82015334,0.000116,2]
[325206384,1714586544942,514.17993987,0.000116,2]
[325206385,1714586547771,1472.72036714,0.000116,2]
[325206386,1714586553125,173.1609721,0.000116,2]
[325206387,1714586555398,720.30127838,0.000116,2]
[325206388,1714586556210,287.77413549,0.000116,2]
[325206389,1714586556706,1375.25304614,0.000116,2]
[325206390,1714586556991,245.96,0.0001162,2]
[325206391,1714586563514,866.82015334,0.000116,2]
[325206392,1714586564960,559.83176209,0.000116,2]
[325206393,1714586574262,214.24865597,0.000116,2]
[325206394,1714586576566,172.78773542,0.000116,2]
[325206395,1714586580707,1375.25304614,0.000116,2]
[325206396,1714586580984,559.83176209,0.000116,2]
[325206397,1714586581259,983.88029739,0.000116,2]
[325206398,1714586587781,154.74,9.296e-05,2]
[325206399,1714586600710,1375.25304614,0.000116,2]
[325206400,1714586602943,559.9186672,0.000116,2]
[325206401,1714586616915,605.9,0.0001162,2]
[325206402,1714586618715,1375.25304614,0.000116,2]
[325206403,1714586622958,559.9186672,0.000116,2]
[325206404,1714586627526,600.72,0.00011661,2]
[325206405,1714586636789,1371.09677817,0.000116,2]
[325206406,1714586640944,604.60890973,0.000116,2]
[325206407,1714586641449,3118.11,0.0001162,2]
[325206408,1714586654579,301.51932461,0.00011542,2]
[325206409,1714586708805,311.2157,0.0001164,2]
[325206410,1714586709970,2000.0,0.00011661,2]
[325206411,1714586717760,200.0,0.00011661,2]
[325206412,1714586719831,150.0,0.00011312,2]
[325206413,1714586765066,150.0,0.00011695,2]
[325206414,1714586779216,4191.43432418,0.00011695,2]
[325206415,1714586782095,35283.93922198,0.00011695,2]
[325206416,1714586783908,320.48365581,0.00011695,2]
[325206417,1714586793018,3002.52973088,0.00011695,2]
[325206418,1714586799463,238.77,9.153e-05,2]
[325206419,1714586816521,1827.95,0.00011361,2]